[Event "Early-Titled-Tuesday-Blitz-April-02-2024"]
[Site "Chess.com"]
[Date "2024.04.02"]
[Round "3"]
[White "Sl4werThanYou"]
[Black "LiamPutnam2008"]
[Result "0-1"]
[WhiteElo "2716"]
[BlackElo "2933"]
[TimeControl "180+1"]
[EndTime "8:24:34 PDT"]
[Termination "LiamPutnam2008 won by resignation"]

1. e4 {[%clk 0:03:00.1]} 1... c6 {[%clk 0:02:58.2]} 2. d4 {[%clk 0:02:42.9]}
2... d5 {[%clk 0:02:59.1]} 3. e5 {[%clk 0:02:38.7]} 3... Bf5 {[%clk 0:02:59.4]}
4. h4 {[%clk 0:02:35.9]} 4... h5 {[%clk 0:02:58.8]} 5. Bd3 {[%clk 0:02:36.4]}
5... Bxd3 {[%clk 0:02:59.1]} 6. Qxd3 {[%clk 0:02:37.3]} 6... e6 {[%clk
0:02:59.5]} 7. Nf3 {[%clk 0:02:36.8]} 7... Qa5+ {[%clk 0:02:58.9]} 8. c3 {[%clk
0:02:37]} 8... Qa6 {[%clk 0:02:58.9]} 9. Qxa6 {[%clk 0:02:31.2]} 9... Nxa6
{[%clk 0:02:59.8]} 10. Nbd2 {[%clk 0:02:31]} 10... Nh6 {[%clk 0:02:57.3]} 11. b4
{[%clk 0:02:29.2]} 11... Nc7 {[%clk 0:02:55.5]} 12. Rb1 {[%clk 0:02:27.3]} 12...
Nf5 {[%clk 0:02:49.4]} 13. g3 {[%clk 0:02:27.1]} 13... Be7 {[%clk 0:02:46.2]}
14. a3 {[%clk 0:02:23.6]} 14... Kd7 {[%clk 0:02:43.2]} 15. Nf1 {[%clk
0:02:23.4]} 15... a5 {[%clk 0:02:42.2]} 16. Ne3 {[%clk 0:02:23.1]} 16... Nxe3
{[%clk 0:02:36.7]} 17. fxe3 {[%clk 0:02:22.9]} 17... Nb5 {[%clk 0:02:31.9]} 18.
Bb2 {[%clk 0:02:22.2]} 18... axb4 {[%clk 0:02:28.3]} 19. axb4 {[%clk 0:02:22.1]}
19... Ra2 {[%clk 0:02:27.4]} 20. O-O {[%clk 0:02:16.3]} 20... Rha8 {[%clk
0:02:26.8]} 21. Rf2 {[%clk 0:02:12.4]} 21... f6 {[%clk 0:02:19]} 22. exf6 {[%clk
0:02:07.5]} 22... gxf6 {[%clk 0:02:17.4]} 23. Kg2 {[%clk 0:02:05.8]} 23... Bd6
{[%clk 0:02:16.1]} 24. Rg1 {[%clk 0:02:01.7]} 24... Rg8 {[%clk 0:02:12.9]} 25.
Ra1 {[%clk 0:01:10.7]} 25... Rxg3+ {[%clk 0:02:06.4]} 26. Kh1 {[%clk 0:01:07.8]}
26... Rxb2 {[%clk 0:02:07]} 0-1

[Event "Early-Titled-Tuesday-Blitz-April-02-2024"]
[Site "Chess.com"]
[Date "2024.04.02"]
[Round "3"]
[White "Sanyura"]
[Black "LileKoridze"]
[Result "1-0"]
[WhiteElo "2624"]
[BlackElo "2429"]
[TimeControl "180+1"]
[EndTime "8:24:53 PDT"]
[Termination "Sanyura won by resignation"]

1. e4 {[%clk 0:02:59]} 1... c5 {[%clk 0:03:00]} 2. Nf3 {[%clk 0:02:58.6]} 2...
d6 {[%clk 0:03:00.4]} 3. d4 {[%clk 0:02:57.5]} 3... cxd4 {[%clk 0:03:00.9]} 4.
Nxd4 {[%clk 0:02:58.1]} 4... Nf6 {[%clk 0:03:00.9]} 5. Nc3 {[%clk 0:02:57.4]}
5... a6 {[%clk 0:03:01.4]} 6. g3 {[%clk 0:02:57.8]} 6... e5 {[%clk 0:03:00.2]}
7. Nb3 {[%clk 0:02:55.9]} 7... Be7 {[%clk 0:03:00.3]} 8. Bg2 {[%clk 0:02:56.3]}
8... O-O {[%clk 0:03:00.8]} 9. O-O {[%clk 0:02:56.6]} 9... b5 {[%clk 0:03:01.1]}
10. a4 {[%clk 0:02:56]} 10... b4 {[%clk 0:03:00.9]} 11. Nd5 {[%clk 0:02:55.9]}
11... a5 {[%clk 0:02:58.7]} 12. Nxf6+ {[%clk 0:02:50.1]} 12... Bxf6 {[%clk
0:02:57.3]} 13. Bd2 {[%clk 0:02:50.6]} 13... Bb7 {[%clk 0:02:57.1]} 14. c3
{[%clk 0:02:50.4]} 14... Nc6 {[%clk 0:02:41.5]} 15. cxb4 {[%clk 0:02:50.1]}
15... Nxb4 {[%clk 0:02:41.6]} 16. Bxb4 {[%clk 0:02:48.6]} 16... axb4 {[%clk
0:02:41.7]} 17. Qd2 {[%clk 0:02:49.1]} 17... Qb6 {[%clk 0:02:37.2]} 18. Rfd1
{[%clk 0:02:45]} 18... Rfd8 {[%clk 0:02:36.1]} 19. a5 {[%clk 0:02:44.4]} 19...
Qb5 {[%clk 0:02:35.3]} 20. Bf1 {[%clk 0:02:44]} 20... Qd7 {[%clk 0:02:26.9]} 21.
Qxb4 {[%clk 0:02:42.8]} 21... Rab8 {[%clk 0:02:14.1]} 22. Qc4 {[%clk 0:02:29.3]}
22... d5 {[%clk 0:02:11.9]} 23. Nc5 {[%clk 0:02:01.6]} 23... Qc6 {[%clk
0:01:53.5]} 24. exd5 {[%clk 0:02:00.9]} 24... Rxd5 {[%clk 0:01:53.5]} 25. Rxd5
{[%clk 0:02:01]} 25... Qxd5 {[%clk 0:01:53.6]} 26. Qxd5 {[%clk 0:02:01]} 26...
Bxd5 {[%clk 0:01:54.5]} 27. Nd7 {[%clk 0:01:39.5]} 27... Rxb2 {[%clk 0:01:52.8]}
28. a6 {[%clk 0:01:37.5]} 28... Be7 {[%clk 0:01:38.2]} 29. a7 {[%clk 0:01:32.7]}
29... Ba8 {[%clk 0:01:31.3]} 30. Bg2 {[%clk 0:01:32.7]} 1-0

[Event "Early-Titled-Tuesday-Blitz-April-02-2024"]
[Site "Chess.com"]
[Date "2024.04.02"]
[Round "3"]
[White "RamonManon0g"]
[Black "Chernov_Alexander_A"]
[Result "1-0"]
[WhiteElo "2406"]
[BlackElo "2201"]
[TimeControl "180+1"]
[EndTime "8:24:58 PDT"]
[Termination "RamonManon0g won by resignation"]

1. e4 {[%clk 0:03:00.9]} 1... d6 {[%clk 0:02:56.3]} 2. d4 {[%clk 0:03:00.4]}
2... Nf6 {[%clk 0:02:55.2]} 3. Nc3 {[%clk 0:02:59.6]} 3... Nbd7 {[%clk
0:02:54.8]} 4. Nf3 {[%clk 0:02:59.9]} 4... e5 {[%clk 0:02:54.8]} 5. dxe5 {[%clk
0:02:59.6]} 5... dxe5 {[%clk 0:02:54.4]} 6. Bc4 {[%clk 0:02:59.7]} 6... Be7
{[%clk 0:02:54]} 7. O-O {[%clk 0:02:55]} 7... O-O {[%clk 0:02:53.8]} 8. Nd5
{[%clk 0:02:55]} 8... Nxd5 {[%clk 0:02:41.4]} 9. exd5 {[%clk 0:02:55.9]} 9...
Bd6 {[%clk 0:02:24.2]} 10. Re1 {[%clk 0:02:51.2]} 10... f6 {[%clk 0:02:17.1]}
11. Nh4 {[%clk 0:02:39.7]} 11... Qe8 {[%clk 0:02:09.4]} 12. c3 {[%clk
0:02:20.9]} 12... Nb6 {[%clk 0:01:54.7]} 13. Bb3 {[%clk 0:02:20.9]} 13... a5
{[%clk 0:01:54]} 14. c4 {[%clk 0:02:19.7]} 14... a4 {[%clk 0:01:50.2]} 15. Bc2
{[%clk 0:02:19.9]} 15... Bc5 {[%clk 0:01:49.1]} 16. Qd3 {[%clk 0:02:15.9]} 16...
g6 {[%clk 0:01:47.3]} 17. Bh6 {[%clk 0:02:12.1]} 17... Rf7 {[%clk 0:01:45.3]}
18. Nxg6 {[%clk 0:02:08.6]} 18... hxg6 {[%clk 0:01:44.6]} 19. Qxg6+ {[%clk
0:02:09.5]} 19... Kh8 {[%clk 0:01:43.7]} 20. Bg7+ {[%clk 0:02:08.3]} 20... Rxg7
{[%clk 0:00:56.4]} 21. Qxe8+ {[%clk 0:02:09.2]} 21... Rg8 {[%clk 0:00:56.2]} 22.
Qh5+ {[%clk 0:01:58.6]} 22... Kg7 {[%clk 0:00:55.1]} 23. Qg6+ {[%clk 0:01:58.4]}
1-0

[Event "Early-Titled-Tuesday-Blitz-April-02-2024"]
[Site "Chess.com"]
[Date "2024.04.02"]
[Round "3"]
[White "flawian2008"]
[Black "vovachesss"]
[Result "0-1"]
[WhiteElo "2474"]
[BlackElo "2813"]
[TimeControl "180+1"]
[EndTime "8:25:14 PDT"]
[Termination "vovachesss won by resignation"]

1. d4 {[%clk 0:02:58]} 1... d6 {[%clk 0:02:59.5]} 2. e4 {[%clk 0:02:57.8]} 2...
Nf6 {[%clk 0:02:59.8]} 3. Nc3 {[%clk 0:02:57.5]} 3... Nbd7 {[%clk 0:03:00.4]} 4.
Nf3 {[%clk 0:02:55.4]} 4... e5 {[%clk 0:03:00.9]} 5. h3 {[%clk 0:02:54.5]} 5...
c6 {[%clk 0:02:58.4]} 6. Be3 {[%clk 0:02:49.4]} 6... b5 {[%clk 0:02:58.2]} 7. a3
{[%clk 0:02:49.2]} 7... Be7 {[%clk 0:02:54.3]} 8. Be2 {[%clk 0:02:47.8]} 8...
O-O {[%clk 0:02:54.2]} 9. O-O {[%clk 0:02:47.8]} 9... Bb7 {[%clk 0:02:48.9]} 10.
Qd2 {[%clk 0:02:47.4]} 10... Qc7 {[%clk 0:02:47.8]} 11. Rad1 {[%clk 0:02:46.7]}
11... a6 {[%clk 0:02:47.9]} 12. Rfe1 {[%clk 0:02:27.3]} 12... Rfe8 {[%clk
0:02:44.3]} 13. Bf1 {[%clk 0:02:18.2]} 13... Rad8 {[%clk 0:02:43.8]} 14. d5
{[%clk 0:02:14.3]} 14... cxd5 {[%clk 0:02:40.2]} 15. exd5 {[%clk 0:02:15.2]}
15... Nb6 {[%clk 0:02:29.1]} 16. Bxb6 {[%clk 0:02:15.3]} 16... Qxb6 {[%clk
0:02:30]} 17. Ng5 {[%clk 0:02:16]} 17... Nxd5 {[%clk 0:01:30.6]} 18. Nxf7 {[%clk
0:01:52]} 18... Nxc3 {[%clk 0:01:30.5]} 19. Nxd8 {[%clk 0:01:52.1]} 19... Nxd1
{[%clk 0:01:30.6]} 20. Nxb7 {[%clk 0:01:52.1]} 20... Nxf2 {[%clk 0:00:54.7]} 21.
Qxf2 {[%clk 0:01:51.8]} 21... Qxb7 {[%clk 0:00:54.6]} 22. c4 {[%clk 0:01:51.2]}
22... Bd8 {[%clk 0:00:45.5]} 23. Rd1 {[%clk 0:01:46.2]} 23... Bb6 {[%clk
0:00:42.7]} 0-1

[Event "Early-Titled-Tuesday-Blitz-April-02-2024"]
[Site "Chess.com"]
[Date "2024.04.02"]
[Round "3"]
[White "CSB7"]
[Black "Firouzja2003"]
[Result "0-1"]
[WhiteElo "2770"]
[BlackElo "3115"]
[TimeControl "180+1"]
[EndTime "8:25:23 PDT"]
[Termination "Firouzja2003 won by resignation"]

1. e4 {[%clk 0:03:00.9]} 1... c5 {[%clk 0:03:00.4]} 2. Nf3 {[%clk 0:02:59.9]}
2... d6 {[%clk 0:03:01.1]} 3. d4 {[%clk 0:02:59.9]} 3... cxd4 {[%clk 0:03:02]}
4. Nxd4 {[%clk 0:03:00.3]} 4... Nf6 {[%clk 0:03:02.8]} 5. Nc3 {[%clk 0:03:00.9]}
5... a6 {[%clk 0:03:03.5]} 6. Bg5 {[%clk 0:03:01.1]} 6... e6 {[%clk 0:03:03.8]}
7. f4 {[%clk 0:03:00.2]} 7... h6 {[%clk 0:03:03.5]} 8. Bh4 {[%clk 0:02:59.6]}
8... Be7 {[%clk 0:03:00.8]} 9. Qf3 {[%clk 0:02:58.6]} 9... Qc7 {[%clk
0:02:57.4]} 10. O-O-O {[%clk 0:02:58]} 10... Nbd7 {[%clk 0:02:56.1]} 11. Be2
{[%clk 0:02:55.8]} 11... Rg8 {[%clk 0:02:48]} 12. Rhf1 {[%clk 0:01:45.3]} 12...
g5 {[%clk 0:02:42.7]} 13. Bg3 {[%clk 0:01:34.3]} 13... gxf4 {[%clk 0:02:41.2]}
14. Bxf4 {[%clk 0:01:35.2]} 14... Ne5 {[%clk 0:02:41]} 15. Qf2 {[%clk
0:01:29.9]} 15... b5 {[%clk 0:02:20.4]} 16. Bxb5+ {[%clk 0:00:42.1]} 16... axb5
{[%clk 0:02:19.2]} 17. Ndxb5 {[%clk 0:00:43]} 17... Qc6 {[%clk 0:02:05]} 18.
Bxe5 {[%clk 0:00:34.8]} 18... dxe5 {[%clk 0:02:04.6]} 19. Nd6+ {[%clk
0:00:34.2]} 19... Kf8 {[%clk 0:02:04.7]} 20. h3 {[%clk 0:00:16.3]} 20... Ba6
{[%clk 0:02:03]} 21. Rfe1 {[%clk 0:00:14.8]} 21... Rg6 {[%clk 0:02:01.9]} 22. a4
{[%clk 0:00:13]} 22... Bxd6 {[%clk 0:02:01.9]} 0-1

[Event "Early-Titled-Tuesday-Blitz-April-02-2024"]
[Site "Chess.com"]
[Date "2024.04.02"]
[Round "3"]
[White "ploxoi"]
[Black "albi1999"]
[Result "1-0"]
[WhiteElo "2444"]
[BlackElo "2605"]
[TimeControl "180+1"]
[EndTime "8:25:29 PDT"]
[Termination "ploxoi won by resignation"]

1. d4 {[%clk 0:03:00.9]} 1... Nf6 {[%clk 0:02:58.6]} 2. c4 {[%clk 0:03:01.3]}
2... e6 {[%clk 0:02:58.8]} 3. g3 {[%clk 0:03:00.5]} 3... c5 {[%clk 0:02:58.7]}
4. d5 {[%clk 0:02:59.7]} 4... b5 {[%clk 0:02:59]} 5. Bg2 {[%clk 0:02:52.5]} 5...
exd5 {[%clk 0:02:57.6]} 6. Nc3 {[%clk 0:02:41.5]} 6... Bb7 {[%clk 0:02:47.3]} 7.
cxb5 {[%clk 0:02:31.7]} 7... Ne4 {[%clk 0:02:28.2]} 8. Nxd5 {[%clk 0:02:24.1]}
8... f5 {[%clk 0:02:05.3]} 9. a4 {[%clk 0:02:12.2]} 9... Qa5+ {[%clk 0:01:56.9]}
10. Bd2 {[%clk 0:02:05.8]} 10... Qd8 {[%clk 0:01:50.6]} 11. Bf4 {[%clk
0:02:01.6]} 11... d6 {[%clk 0:01:48.9]} 12. Nf3 {[%clk 0:01:40.3]} 12... g5
{[%clk 0:01:46.6]} 13. Nxg5 {[%clk 0:01:17.1]} 13... Nxg5 {[%clk 0:01:35]} 14.
Bxg5 {[%clk 0:01:10.6]} 14... Qxg5 {[%clk 0:01:34.6]} 15. Nc7+ {[%clk
0:01:10.7]} 15... Kd8 {[%clk 0:01:33.1]} 16. Bxb7 {[%clk 0:01:11.3]} 16... Kxc7
{[%clk 0:01:29.1]} 17. Bxa8 {[%clk 0:01:11.4]} 17... f4 {[%clk 0:01:28.1]} 18.
a5 {[%clk 0:01:07]} 18... fxg3 {[%clk 0:01:25.2]} 19. hxg3 {[%clk 0:01:05.2]}
19... Bg7 {[%clk 0:01:25.3]} 20. b6+ {[%clk 0:01:04.8]} 20... axb6 {[%clk
0:01:24.5]} 21. axb6+ {[%clk 0:01:05.7]} 21... Kd7 {[%clk 0:01:13.8]} 22. Ra7+
{[%clk 0:01:04.3]} 22... Ke6 {[%clk 0:01:13.9]} 23. Bd5+ {[%clk 0:01:04.4]} 1-0

[Event "Early-Titled-Tuesday-Blitz-April-02-2024"]
[Site "Chess.com"]
[Date "2024.04.02"]
[Round "3"]
[White "Heliosis11"]
[Black "Squirlolz"]
[Result "1-0"]
[WhiteElo "2386"]
[BlackElo "2590"]
[TimeControl "180+1"]
[EndTime "8:25:31 PDT"]
[Termination "Heliosis11 won by resignation"]

1. e4 {[%clk 0:03:00.9]} 1... e5 {[%clk 0:02:56.7]} 2. Nf3 {[%clk 0:03:00]} 2...
Nc6 {[%clk 0:02:57.2]} 3. Bb5 {[%clk 0:03:00.6]} 3... Nge7 {[%clk 0:02:56]} 4.
Nc3 {[%clk 0:03:00.1]} 4... a6 {[%clk 0:02:55.5]} 5. Ba4 {[%clk 0:02:57.3]} 5...
d6 {[%clk 0:02:55.9]} 6. d4 {[%clk 0:02:32.8]} 6... Bd7 {[%clk 0:02:43.4]} 7. d5
{[%clk 0:02:29.5]} 7... Nb8 {[%clk 0:02:43.6]} 8. Bxd7+ {[%clk 0:02:30.4]} 8...
Nxd7 {[%clk 0:02:44.5]} 9. O-O {[%clk 0:02:30.4]} 9... g6 {[%clk 0:02:42.4]} 10.
Be3 {[%clk 0:02:30.7]} 10... Bg7 {[%clk 0:02:38.2]} 11. Nd2 {[%clk 0:02:30.6]}
11... O-O {[%clk 0:02:38.1]} 12. Ne2 {[%clk 0:02:28.4]} 12... f5 {[%clk
0:02:36.8]} 13. f3 {[%clk 0:02:28.4]} 13... f4 {[%clk 0:02:36]} 14. Bf2 {[%clk
0:02:28.8]} 14... g5 {[%clk 0:02:36.7]} 15. c4 {[%clk 0:02:28.4]} 15... h5
{[%clk 0:02:35.8]} 16. b4 {[%clk 0:02:27.7]} 16... g4 {[%clk 0:02:36]} 17. c5
{[%clk 0:02:27.1]} 17... Ng6 {[%clk 0:02:32.2]} 18. Nc3 {[%clk 0:02:24.9]} 18...
Qg5 {[%clk 0:02:27.7]} 19. c6 {[%clk 0:02:20.4]} 19... g3 {[%clk 0:02:22.9]} 20.
cxd7 {[%clk 0:02:18.2]} 20... gxf2+ {[%clk 0:02:20.6]} 21. Rxf2 {[%clk
0:02:18.6]} 21... Rad8 {[%clk 0:02:20]} 22. b5 {[%clk 0:02:07.9]} 22... axb5
{[%clk 0:02:14.7]} 23. Nxb5 {[%clk 0:02:06.3]} 23... Rxd7 {[%clk 0:02:14.9]} 24.
Rc1 {[%clk 0:02:06.2]} 24... Qe7 {[%clk 0:01:56.5]} 25. Nf1 {[%clk 0:01:54.1]}
25... Ra8 {[%clk 0:01:52.1]} 26. Rfc2 {[%clk 0:01:53]} 26... c6 {[%clk
0:01:45.6]} 27. dxc6 {[%clk 0:01:52.7]} 27... bxc6 {[%clk 0:01:46.5]} 28. Rxc6
{[%clk 0:01:52]} 28... Rxa2 {[%clk 0:01:47.2]} 29. Qd5+ {[%clk 0:01:52]} 29...
Kh7 {[%clk 0:01:44.8]} 30. Qxa2 {[%clk 0:01:51.8]} 30... Rb7 {[%clk 0:01:36.6]}
31. Nc7 {[%clk 0:01:47.5]} 31... Nh4 {[%clk 0:01:33.7]} 32. Nd5 {[%clk
0:01:39.6]} 32... Qg5 {[%clk 0:01:32.5]} 33. Qf2 {[%clk 0:01:40.1]} 33... Rb3
{[%clk 0:01:28.9]} 34. R1c3 {[%clk 0:01:35.8]} 34... Rb1 {[%clk 0:01:28.7]} 35.
Rc1 {[%clk 0:01:35.6]} 35... Rb3 {[%clk 0:01:28.8]} 36. R6c3 {[%clk 0:01:36.1]}
36... Rb5 {[%clk 0:01:24.8]} 37. Nc7 {[%clk 0:01:32.8]} 37... Rb4 {[%clk
0:01:21.9]} 38. Ne6 {[%clk 0:01:32.8]} 38... Qg6 {[%clk 0:01:21.2]} 39. Nxg7
{[%clk 0:01:31]} 39... Kxg7 {[%clk 0:01:22.1]} 40. Qxh4 {[%clk 0:01:30]} 40...
d5 {[%clk 0:01:16.7]} 41. Rc7+ {[%clk 0:01:29.6]} 41... Kh6 {[%clk 0:01:17]} 42.
R1c6 {[%clk 0:01:29.9]} 1-0

[Event "Early-Titled-Tuesday-Blitz-April-02-2024"]
[Site "Chess.com"]
[Date "2024.04.02"]
[Round "3"]
[White "Cheer_Down"]
[Black "slorovel"]
[Result "0-1"]
[WhiteElo "2434"]
[BlackElo "2631"]
[TimeControl "180+1"]
[EndTime "8:25:32 PDT"]
[Termination "slorovel won by resignation"]

1. e4 {[%clk 0:03:00.9]} 1... g6 {[%clk 0:02:59.5]} 2. d4 {[%clk 0:03:00.4]}
2... Bg7 {[%clk 0:03:00.4]} 3. Nc3 {[%clk 0:03:00.3]} 3... c6 {[%clk 0:03:01]}
4. Nf3 {[%clk 0:02:59.6]} 4... d5 {[%clk 0:03:01.3]} 5. h3 {[%clk 0:03:00]} 5...
dxe4 {[%clk 0:03:01.2]} 6. Nxe4 {[%clk 0:03:00.9]} 6... Nf6 {[%clk 0:03:01.7]}
7. Nxf6+ {[%clk 0:03:01]} 7... exf6 {[%clk 0:03:02.6]} 8. Bd3 {[%clk 0:02:59.3]}
8... O-O {[%clk 0:03:03.1]} 9. O-O {[%clk 0:02:59.1]} 9... a5 {[%clk 0:03:03.7]}
10. c3 {[%clk 0:02:51.6]} 10... a4 {[%clk 0:03:03.5]} 11. a3 {[%clk 0:02:52]}
11... b5 {[%clk 0:03:03]} 12. Bf4 {[%clk 0:02:50.8]} 12... Be6 {[%clk
0:03:02.7]} 13. Re1 {[%clk 0:02:50.1]} 13... Nd7 {[%clk 0:03:02.3]} 14. Qd2
{[%clk 0:02:49.5]} 14... Nb6 {[%clk 0:03:02.3]} 15. Bh6 {[%clk 0:02:49.1]} 15...
Bc4 {[%clk 0:02:58.5]} 16. Bxg7 {[%clk 0:02:42.7]} 16... Kxg7 {[%clk 0:02:58.4]}
17. Be4 {[%clk 0:02:42.5]} 17... Bd5 {[%clk 0:02:57.2]} 18. Qf4 {[%clk
0:02:37.8]} 18... Nc4 {[%clk 0:02:53.4]} 19. Re2 {[%clk 0:02:35.7]} 19... Qd7
{[%clk 0:02:52.1]} 20. Rae1 {[%clk 0:02:34.5]} 20... Bxe4 {[%clk 0:02:39.3]} 21.
Qxe4 {[%clk 0:02:34]} 21... Rfe8 {[%clk 0:02:39.4]} 22. Qc2 {[%clk 0:02:34]}
22... Rxe2 {[%clk 0:02:38.1]} 23. Rxe2 {[%clk 0:02:34.4]} 23... Re8 {[%clk
0:02:38.2]} 24. Rxe8 {[%clk 0:02:31.2]} 24... Qxe8 {[%clk 0:02:39.1]} 25. Kf1
{[%clk 0:02:31.5]} 25... f5 {[%clk 0:02:35.1]} 26. Nd2 {[%clk 0:02:31.6]} 26...
Nd6 {[%clk 0:02:29.3]} 27. Qd3 {[%clk 0:02:31.4]} 27... Qe6 {[%clk 0:02:28.6]}
28. Qe2 {[%clk 0:02:23.7]} 28... Kf6 {[%clk 0:02:08.4]} 29. Qxe6+ {[%clk
0:02:18.5]} 29... Kxe6 {[%clk 0:02:09.3]} 30. Ke2 {[%clk 0:02:18.6]} 30... Kd5
{[%clk 0:02:09.6]} 31. Kd3 {[%clk 0:02:13.2]} 31... Ne4 {[%clk 0:02:07.5]} 32.
Nxe4 {[%clk 0:02:05.7]} 32... fxe4+ {[%clk 0:02:08.4]} 33. Ke3 {[%clk
0:02:06.1]} 33... f5 {[%clk 0:02:07.7]} 34. g4 {[%clk 0:02:06.4]} 34... Kc4
{[%clk 0:01:42.6]} 35. gxf5 {[%clk 0:02:05.9]} 35... gxf5 {[%clk 0:01:43.5]} 36.
Kf4 {[%clk 0:02:04.5]} 36... Kb3 {[%clk 0:01:41.8]} 37. Kxf5 {[%clk 0:02:02.7]}
37... Kxb2 {[%clk 0:01:42]} 38. Kxe4 {[%clk 0:02:02.3]} 38... Kxa3 {[%clk
0:01:42]} 39. f4 {[%clk 0:02:02.8]} 39... Kb3 {[%clk 0:01:42.3]} 40. f5 {[%clk
0:02:03.4]} 40... a3 {[%clk 0:01:42.6]} 41. f6 {[%clk 0:02:04]} 41... a2 {[%clk
0:01:42.9]} 42. f7 {[%clk 0:02:04.6]} 42... a1=Q {[%clk 0:01:42.5]} 43. f8=Q
{[%clk 0:02:05]} 43... Qe1+ {[%clk 0:01:36.9]} 44. Kd3 {[%clk 0:02:04.6]} 44...
Qd1+ {[%clk 0:01:23.6]} 45. Ke3 {[%clk 0:02:00.8]} 45... Qe1+ {[%clk 0:01:22.7]}
46. Kd3 {[%clk 0:02:00.7]} 46... Qxc3+ {[%clk 0:01:22.7]} 47. Ke4 {[%clk
0:02:01.2]} 47... Qxh3 {[%clk 0:01:12.2]} 48. Qf7+ {[%clk 0:01:56.8]} 48... Kc3
{[%clk 0:01:10.6]} 0-1

[Event "Early-Titled-Tuesday-Blitz-April-02-2024"]
[Site "Chess.com"]
[Date "2024.04.02"]
[Round "3"]
[White "AccioChess"]
[Black "lamomiajunior"]
[Result "0-1"]
[WhiteElo "2465"]
[BlackElo "2703"]
[TimeControl "180+1"]
[EndTime "8:25:45 PDT"]
[Termination "lamomiajunior won by resignation"]

1. e4 {[%clk 0:02:53.4]} 1... c5 {[%clk 0:02:59.4]} 2. Nf3 {[%clk 0:02:52.3]}
2... d6 {[%clk 0:02:59.8]} 3. d4 {[%clk 0:02:52.6]} 3... cxd4 {[%clk 0:03:00.7]}
4. Nxd4 {[%clk 0:02:53]} 4... Nf6 {[%clk 0:03:01.4]} 5. Nc3 {[%clk 0:02:53.3]}
5... a6 {[%clk 0:03:02]} 6. Be2 {[%clk 0:02:53.3]} 6... e5 {[%clk 0:03:00.2]} 7.
Nb3 {[%clk 0:02:53.2]} 7... Be7 {[%clk 0:02:59.9]} 8. O-O {[%clk 0:02:52.8]}
8... O-O {[%clk 0:02:58.9]} 9. Be3 {[%clk 0:02:52.9]} 9... Be6 {[%clk
0:02:58.8]} 10. f4 {[%clk 0:02:51.4]} 10... exf4 {[%clk 0:02:55.3]} 11. Bxf4
{[%clk 0:02:50.5]} 11... Nc6 {[%clk 0:02:55.3]} 12. Qe1 {[%clk 0:02:48.6]} 12...
Ne5 {[%clk 0:02:54.1]} 13. Rd1 {[%clk 0:02:47.3]} 13... Qc7 {[%clk 0:02:53.4]}
14. Qg3 {[%clk 0:02:41.4]} 14... Rad8 {[%clk 0:02:46.4]} 15. Nd4 {[%clk
0:02:26]} 15... Ng6 {[%clk 0:02:45.1]} 16. Bg5 {[%clk 0:02:16.5]} 16... Qb6
{[%clk 0:02:35.3]} 17. Kh1 {[%clk 0:02:09]} 17... Kh8 {[%clk 0:02:33.9]} 18. Nf5
{[%clk 0:02:02.2]} 18... Bxf5 {[%clk 0:02:27.6]} 19. exf5 {[%clk 0:02:03.1]}
19... Ne5 {[%clk 0:02:27.8]} 20. b3 {[%clk 0:01:48.5]} 20... Rc8 {[%clk
0:02:15.3]} 21. Bxf6 {[%clk 0:01:01.5]} 21... Bxf6 {[%clk 0:02:16.2]} 22. Ne4
{[%clk 0:01:00]} 22... Rxc2 {[%clk 0:02:12.2]} 23. Rxd6 {[%clk 0:00:56.4]} 23...
Qb4 {[%clk 0:02:11.8]} 24. Rxf6 {[%clk 0:00:49.4]} 24... Qxe4 {[%clk 0:02:06.6]}
25. Bf3 {[%clk 0:00:40]} 25... Qd3 {[%clk 0:02:02.8]} 26. Re1 {[%clk 0:00:28.1]}
26... gxf6 {[%clk 0:01:59.9]} 27. Qh4 {[%clk 0:00:28.1]} 27... Nxf3 {[%clk
0:01:38.9]} 0-1

[Event "Early-Titled-Tuesday-Blitz-April-02-2024"]
[Site "Chess.com"]
[Date "2024.04.02"]
[Round "3"]
[White "UK_23"]
[Black "gorgeous1083"]
[Result "0-1"]
[WhiteElo "2387"]
[BlackElo "2210"]
[TimeControl "180+1"]
[EndTime "8:25:54 PDT"]
[Termination "gorgeous1083 won by resignation"]

1. e4 {[%clk 0:03:00.9]} 1... e6 {[%clk 0:02:59.9]} 2. d4 {[%clk 0:03:00.9]}
2... d5 {[%clk 0:03:00.5]} 3. e5 {[%clk 0:03:01.6]} 3... c5 {[%clk 0:03:00.4]}
4. c3 {[%clk 0:03:02.3]} 4... Qb6 {[%clk 0:03:00.8]} 5. Nf3 {[%clk 0:03:02.3]}
5... Nc6 {[%clk 0:03:01.5]} 6. Be2 {[%clk 0:03:02.3]} 6... Bd7 {[%clk
0:03:00.5]} 7. O-O {[%clk 0:03:01]} 7... Nh6 {[%clk 0:02:57.4]} 8. Bxh6 {[%clk
0:02:53.3]} 8... gxh6 {[%clk 0:02:57.5]} 9. a3 {[%clk 0:02:50.4]} 9... c4 {[%clk
0:02:52.8]} 10. Ra2 {[%clk 0:02:48.2]} 10... Rg8 {[%clk 0:02:50.3]} 11. Nbd2
{[%clk 0:02:44.7]} 11... Ne7 {[%clk 0:02:46.1]} 12. Re1 {[%clk 0:02:38.6]} 12...
h5 {[%clk 0:02:42.8]} 13. Bf1 {[%clk 0:02:38.3]} 13... Bh6 {[%clk 0:02:41.6]}
14. g3 {[%clk 0:02:33]} 14... Ng6 {[%clk 0:02:37]} 15. Bg2 {[%clk 0:02:31.4]}
15... h4 {[%clk 0:02:36.8]} 16. Nf1 {[%clk 0:02:31.2]} 16... Qd8 {[%clk
0:02:25.5]} 17. Ne3 {[%clk 0:02:28.9]} 17... hxg3 {[%clk 0:02:17.4]} 18. hxg3
{[%clk 0:02:28.6]} 18... Bxe3 {[%clk 0:02:09.2]} 19. Rxe3 {[%clk 0:02:29.5]}
19... h5 {[%clk 0:02:09.3]} 20. Kf1 {[%clk 0:02:01.7]} 20... h4 {[%clk
0:02:09.1]} 21. Bh3 {[%clk 0:01:55.5]} 21... hxg3 {[%clk 0:02:06.1]} 22. fxg3
{[%clk 0:01:56.4]} 22... Qe7 {[%clk 0:01:58]} 23. Ra1 {[%clk 0:01:54]} 23... Qf8
{[%clk 0:01:54.3]} 24. Nh2 {[%clk 0:01:46.7]} 24... Qh6 {[%clk 0:01:51]} 25. Ng4
{[%clk 0:01:23.6]} 25... Qxh3+ {[%clk 0:01:41]} 26. Kf2 {[%clk 0:01:23.9]} 26...
Ke7 {[%clk 0:01:26.7]} 27. Qf3 {[%clk 0:01:23.1]} 27... Qh8 {[%clk 0:01:10.1]}
28. Rh1 {[%clk 0:01:18.1]} 28... Qg7 {[%clk 0:01:09.4]} 29. Kg2 {[%clk 0:01:10]}
29... Rh8 {[%clk 0:01:09]} 30. Rf1 {[%clk 0:01:10]} 30... Rag8 {[%clk
0:01:03.7]} 31. Nf6 {[%clk 0:01:07.1]} 31... Nh4+ {[%clk 0:01:00.2]} 0-1